bitfinex-derivatives/quotes_SOLF0:USTF0_20250318
["timestamp","ask_amount","ask_price","bid_price","bid_amount"]
[1742291250971,7.9673,125.51,125.44,307.18202698]
[1742291250972,21.13927316,125.51,125.44,320.36130014]
[1742291251171,13.17927316,125.49,125.44,320.36130014]
[1742291251372,29.36,125.49,125.44,328.33300014]
[1742291251673,7.9701,125.47,125.44,328.33300014]
[1742291252065,8.02641914,125.47,125.44,328.38487377]
[1742291252475,8.02641914,125.47,125.44,284.02284679]
[1742291255166,0.05631914,125.47,125.46,13.17927316]
[1742291256069,0.05631914,125.47,125.46,21.14977316]
[1742291260575,0.05631914,125.47,125.45,50.47007316]
[1742291261570,8.02631914,125.47,125.45,42.49927316]
[1742291262473,7.9705,125.46,125.45,13.17927316]
[1742291262678,7.9705,125.46,125.44,262.87187363]
[1742291263575,7.9711,125.45,125.44,0.05187363]
[1742291263871,0.05631914,125.47,125.44,0.05187363]
[1742291264072,7.9708,125.46,125.44,0.05187363]
[1742291264276,0.05631914,125.47,125.44,13.23114679]
[1742291264971,7.9705,125.46,125.44,13.23114679]
[1742291266477,7.9705,125.46,125.44,21.20284679]
[1742291266875,7.9705,125.46,125.44,13.23114679]
[1742291267275,7.9711,125.45,125.44,0.05187363]
[1742291268779,7.9709,125.46,125.44,0.05187363]
[1742291269983,8.02651914,125.47,125.44,0.05187363]
[1742291270383,8.02651914,125.47,125.44,6.64151021]
[1742291271083,0.05631914,125.47,125.45,6.58963658]
[1742291271886,0.05631914,125.47,125.46,7.9705]
[1742291272483,8.02611914,125.47,125.45,7.9708]
[1742291273386,7.9705,125.46,125.44,21.20254679]
[1742291274185,7.9705,125.46,125.44,13.23114679]
[1742291275396,7.9711,125.45,125.44,0.05187363]
[1742291280602,21.15037316,125.45,125.44,0.05187363]
[1742291280993,7.9736,125.41,125.4,262.98]
[1742291281402,42.33927316,125.43,125.39,13.17927316]
[1742291281595,29.16,125.45,125.41,13.17927316]
[1742291282197,37.1314,125.45,125.42,7.9727]
[1742291282409,0.05759281,125.44,125.42,0.05895376]
[1742291283693,0.05759281,125.44,125.42,8.03175376]
[1742291286300,8.02939281,125.44,125.42,0.05895376]
[1742291288398,8.02939281,125.44,125.42,8.03185376]
[1742291289110,0.05759281,125.44,125.43,7.9724]
[1742291289902,0.05759281,125.44,125.42,8.03155376]
[1742291290702,8.02929281,125.44,125.42,8.03155376]
[1742291291094,8.02929281,125.44,125.42,0.05895376]
[1742291291900,8.02929281,125.44,125.42,8.03165376]
[1742291292097,8.02929281,125.44,125.42,0.05895376]
[1742291293394,0.05759281,125.44,125.42,0.05895376]
[1742291294399,0.05759281,125.44,125.43,7.9724]
[1742291295509,0.05759281,125.44,125.42,0.05895376]
[1742291295699,29.11759281,125.44,125.42,0.05895376]
[1742291295900,21.15167316,125.43,125.42,0.05895376]
[1742291296199,13.17927316,125.43,125.38,7.9752]
[1742291296506,13.17927316,125.43,125.37,13.17927316]
[1742291296899,13.17927316,125.43,125.39,13.17927316]
[1742291297299,0.05802654,125.42,125.4,0.05478883]
[1742291297704,8.03102654,125.42,125.4,8.02878883]
[1742291298301,0.05802654,125.42,125.4,8.02878883]
[1742291298602,0.05802654,125.42,125.4,0.05478883]
[1742291298801,7.9736,125.41,125.4,0.05478883]
[1742291299311,8.03132654,125.42,125.4,8.02908883]
[1742291299606,0.05802654,125.42,125.4,0.05478883]
[1742291300803,0.05802654,125.42,125.4,8.02858883]
[1742291301708,0.05802654,125.42,125.41,7.9736]
[1742291302606,0.05802654,125.42,125.41,21.15287316]
[1742291309309,0.05802654,125.42,125.4,8.02868883]
[1742291309510,8.03102654,125.42,125.4,8.02868883]
[1742291309907,0.05802654,125.42,125.4,8.02868883]
[1742291310906,0.05802654,125.42,125.4,0.05478883]
[1742291311105,13.2372997,125.42,125.4,0.05478883]
[1742291311507,7.9736,125.41,125.4,0.05478883]
[1742291334331,7.9769,125.36,125.32,28.88]
[1742291334626,28.88,125.38,125.33,13.17927316]
[1742291334821,7.9765,125.37,125.35,7.9773]
[1742291335528,8.03375165,125.37,125.35,7.9773]
[1742291336119,0.05725165,125.37,125.36,7.9768]
[1742291348537,8.03345165,125.37,125.35,50.01637316]
[1742291348736,0.05725165,125.37,125.35,42.03927316]
[1742291348930,0.05725165,125.37,125.35,28.86]
[1742291349436,0.05725165,125.37,125.34,292.02]
[1742291351038,0.05725165,125.37,125.35,7.977]
[1742291351439,0.05725165,125.37,125.34,292.02]
[1742291352437,7.9771,125.36,125.34,36.7578]
[1742291352838,0.05725165,125.37,125.34,28.78]
[1742291353049,8.03365165,125.37,125.35,7.9775]
[1742291354039,8.03365165,125.37,125.34,36.7577]
[1742291354242,7.9769,125.36,125.34,7.9777]
[1742291355441,8.03385165,125.37,125.34,7.978]
[1742291355941,8.03385165,125.37,125.35,7.9773]
[1742291356142,7.9768,125.36,125.33,276.41927316]
[1742291356543,7.9768,125.36,125.34,7.9777]
[1742291357646,8.03385165,125.37,125.34,7.9777]
[1742291358549,7.9768,125.36,125.34,7.9777]
[1742291358949,7.9776,125.35,125.33,284.39757316]
[1742291359150,13.23652481,125.37,125.33,263.24]
[1742291359449,28.7,125.36,125.33,263.24]
[1742291359751,7.9778,125.35,125.33,263.24]
[1742291360447,13.17927316,125.35,125.31,7.9797]
[1742291360847,0.05685899,125.34,125.31,7.9797]
[1742291361455,8.03525899,125.34,125.31,7.9797]
[1742291361750,36.71525899,125.34,125.31,7.9797]
[1742291364054,28.73685899,125.34,125.32,7.9792]
[1742291367751,28.73685899,125.34,125.33,7.9787]
[1742291368448,0.05685899,125.34,125.33,7.9787]
[1742291372362,0.05685899,125.34,125.32,7.979]
[1742291372564,13.17927316,125.33,125.29,367.90529725]
[1742291372760,13.17927316,125.33,125.29,339.24529725]
[1742291372958,21.15827316,125.33,125.3,7.9805]
[1742291373360,13.17927316,125.32,125.3,7.9805]
[1742291375068,13.17927316,125.32,125.29,339.24529725]
[1742291375667,13.17927316,125.32,125.31,7.98]
[1742291377368,13.17927316,125.33,125.32,7.9794]
[1742291377766,41.85613215,125.34,125.33,7.9787]
[1742291377968,28.67685899,125.34,125.33,7.9787]
[1742291378164,0.05685899,125.34,125.33,7.9787]
[1742291381467,0.05685899,125.34,125.32,7.979]
[1742291381865,13.23613215,125.34,125.32,7.979]
[1742291382269,13.23613215,125.34,125.33,7.9787]
[1742291383271,13.23613215,125.34,125.29,380.98457041]
[1742291383870,13.23613215,125.34,125.33,7.9787]
[1742291388678,0.05685899,125.34,125.33,7.9787]
[1742291388879,13.23613215,125.34,125.29,367.80529725]
[1742291389473,41.73613215,125.34,125.29,367.80529725]
[1742291391082,41.73613215,125.34,125.32,7.979]
[1742291392581,28.55685899,125.34,125.32,7.979]
[1742291394381,28.55685899,125.34,125.33,7.9787]
[1742291395678,0.05685899,125.34,125.33,7.9787]
[1742291397883,0.05685899,125.34,125.29,291.82]
[1742291398078,28.44,125.33,125.29,291.82]
[1742291398888,28.44,125.33,125.31,7.9795]
[1742291400491,28.44,125.33,125.32,7.9794]
[1742291401391,28.44,125.33,125.31,7.9796]
[1742291401584,28.47685899,125.34,125.29,291.82]
[1742291401786,28.47685899,125.34,125.32,7.9793]
[1742291402789,13.17927316,125.33,125.29,263.26]
[1742291403084,28.42,125.32,125.29,263.26]
[1742291403479,36.3996,125.32,125.29,263.26]
[1742291403678,28.42,125.32,125.29,263.26]
[1742291404082,28.42,125.32,125.3,7.9806]
[1742291405888,41.59927316,125.32,125.3,7.9806]
[1742291406188,28.42,125.32,125.29,263.26]
[1742291406890,28.42,125.32,125.29,276.43927316]
[1742291407090,28.42,125.32,125.29,263.26]
[1742291408490,13.17927316,125.33,125.29,263.26]
[1742291408691,41.63927316,125.33,125.31,7.9795]
[1742291411087,49.61807316,125.33,125.31,7.9795]
[1742291411287,41.63927316,125.33,125.3,7.9804]
[1742291411993,49.61857316,125.33,125.3,7.9804]
[1742291412290,13.17927316,125.31,125.27,263.34]
[1742291412696,0.05632467,125.3,125.27,263.34]
[1742291412991,0.05632467,125.3,125.29,7.9813]
[1742291413183,0.05632467,125.3,125.27,263.34]
[1742291413184,7.9813,125.29,125.27,263.34]
[1742291413392,41.63927316,125.29,125.27,271.3222]
[1742291414796,49.62097316,125.29,125.27,271.3222]
[1742291415198,41.63927316,125.29,125.27,263.34]
[1742291415794,49.62067316,125.29,125.27,271.3222]
[1742291419099,7.9819,125.28,125.27,263.34]
[1742291419395,7.9819,125.28,125.26,7.9829]
[1742291419598,7.9825,125.27,125.25,7.9834]
[1742291419802,41.63927316,125.29,125.24,84.05244533]
[1742291419999,0.05345932,125.27,125.24,84.05244533]
[1742291420200,0.05345932,125.27,125.26,7.9832]
[1742291424703,0.05345932,125.27,125.24,13.17927316]
[1742291425005,0.05345932,125.27,125.25,7.9835]
[1742291425198,0.05345932,125.27,125.24,13.17927316]
[1742291425600,0.05345932,125.27,125.25,7.9832]
[1742291426404,0.05345932,125.27,125.24,13.17927316]
[1742291427608,0.05345932,125.27,125.25,7.9833]
[1742291427810,8.03605932,125.27,125.25,7.9833]
[1742291428203,36.45605932,125.27,125.25,7.9833]
[1742291428704,36.45605932,125.27,125.24,13.17927316]
[1742291428909,28.47345932,125.27,125.24,13.17927316]
[1742291429505,28.47345932,125.27,125.25,7.9836]
[1742291429807,36.45635932,125.27,125.25,7.9836]
[1742291432310,28.47345932,125.27,125.25,7.9836]
[1742291433006,36.45615932,125.27,125.25,7.9836]
[1742291435410,28.47345932,125.27,125.24,13.17927316]
[1742291438111,28.47345932,125.27,125.26,7.9832]
[1742291438914,28.47345932,125.27,125.25,7.9836]
[1742291439113,28.47345932,125.27,125.24,13.17927316]
[1742291444713,28.47345932,125.27,125.26,7.9832]
[1742291452025,28.47345932,125.27,125.24,13.17927316]
[1742291454625,28.47345932,125.27,125.23,263.38]
[1742291454827,28.47345932,125.27,125.23,276.55927316]
[1742291455628,28.47345932,125.27,125.25,7.9835]
[1742291455925,28.47345932,125.27,125.23,304.97927316]
[1742291456127,28.47345932,125.27,125.26,7.9832]
[1742291456325,0.05345932,125.27,125.26,7.9832]
[1742291456726,0.05345932,125.27,125.25,7.9835]
[1742291457523,8.03615932,125.27,125.25,7.9835]
[1742291457821,0.05345932,125.27,125.23,304.97927316]
[1742291459122,0.05345932,125.27,125.25,7.9832]
[1742291460027,0.05345932,125.27,125.23,304.97927316]
[1742291462124,0.05345932,125.27,125.25,13.17927316]
[1742291462430,13.17927316,125.33,125.26,28.42]
[1742291462630,28.42,125.32,125.28,13.17927316]
[1742291462831,188.48890505,125.36,125.28,41.59927316]
[1742291462832,34.8236,125.34,125.28,41.59927316]
[1742291463026,2.2047,125.34,125.3,13.17927316]
[1742291463227,10.1832,125.34,125.3,13.17927316]
[1742291463433,41.59927316,125.35,125.32,7.9792]
[1742291463634,0.05704541,125.33,125.32,7.9792]
[1742291464424,0.05704541,125.33,125.32,21.15847316]
[1742291465427,0.05704541,125.33,125.32,7.9792]
[1742291468629,0.05704541,125.33,125.31,21.21796886]
[1742291468926,0.05704541,125.33,125.31,8.0386957]
[1742291472639,0.05704541,125.33,125.32,7.9794]
[1742291473638,0.05704541,125.33,125.32,21.15867316]
[1742291473838,0.05704541,125.33,125.32,49.57867316]
[1742291474039,0.05704541,125.33,125.32,28.42]
[1742291474443,0.05704541,125.33,125.31,0.0587957]
[1742291474444,8.03634541,125.33,125.31,0.0587957]
[1742291475031,7.9794,125.32,125.31,0.0587957]
[1742291475231,49.61867316,125.32,125.31,0.0587957]
[1742291475431,51.80427316,125.32,125.31,0.0587957]
[1742291481647,38.625,125.32,125.31,0.0587957]
[1742291487446,7.982,125.28,125.25,291.8]
[1742291487648,7.982,125.28,125.25,276.55927316]
[1742291487847,41.75927316,125.3,125.25,284.54287316]
[1742291488048,7.9822,125.28,125.25,284.54287316]
[1742291488245,41.75927316,125.3,125.25,284.54287316]
[1742291488450,7.9822,125.28,125.25,284.54287316]
[1742291488651,7.9822,125.28,125.25,276.55927316]
[1742291489052,8.0390227,125.29,125.25,276.55927316]
[1742291489749,0.0573227,125.29,125.26,28.6]
[1742291489954,0.0573227,125.29,125.27,13.17927316]
[1742291492054,0.0573227,125.29,125.28,7.9819]
[1742291502274,0.0573227,125.29,125.28,36.5019]
[1742291504674,4.1778,125.37,125.32,7.9793]
[1742291504878,41.67927316,125.36,125.32,7.9793]
[1742291505072,7.9777,125.35,125.3,41.67927316]
[1742291505379,7.9777,125.35,125.33,7.9787]
[1742291505674,7.9777,125.35,125.3,41.67927316]
[1742291505870,8.03051382,125.35,125.33,0.050467]
[1742291506273,0.05281382,125.35,125.33,0.050467]
[1742291507971,0.05281382,125.35,125.34,7.9781]
[1742291511879,0.05281382,125.35,125.33,8.028867]
[1742291512477,13.17927316,125.34,125.33,0.050467]
[1742291512878,21.15737316,125.34,125.33,0.050467]
[1742291514380,7.98,125.31,125.28,21.16077316]
[1742291514580,28.49281382,125.35,125.28,21.16077316]
[1742291514581,13.17927316,125.33,125.28,49.92077316]
[1742291514783,41.93927316,125.33,125.28,49.92077316]
[1742291515180,41.93927316,125.33,125.28,36.7415]
[1742291515379,28.76,125.33,125.27,271.3223]
[1742291515583,13.17927316,125.3,125.27,263.34]
[1742291515885,7.9817,125.29,125.27,263.34]
[1742291516384,8.03844429,125.29,125.27,263.34]
[1742291516683,7.9819,125.28,125.27,263.34]
[1742291517176,0.05674429,125.29,125.27,263.34]
[1742291517380,8.03834429,125.29,125.27,271.3222]
[1742291518283,8.03834429,125.29,125.27,263.34]
[1742291518783,8.03834429,125.29,125.27,271.3225]
[1742291519182,7.9819,125.28,125.27,263.34]
[1742291519386,0.05674429,125.29,125.27,263.34]
[1742291519886,0.05674429,125.29,125.27,271.3221]
[1742291520189,0.05674429,125.29,125.27,263.34]
[1742291521184,0.05674429,125.29,125.28,7.9819]
[1742291521387,0.05674429,125.29,125.27,263.34]
[1742291521587,8.03814429,125.29,125.27,263.34]
[1742291522389,7.9819,125.28,125.27,263.34]
[1742291524192,7.983,125.27,125.25,71.09049348]
[1742291525591,7.983,125.27,125.25,79.07409348]
[1742291525794,7.9822,125.28,125.25,71.09049348]
[1742291526790,7.9827,125.27,125.25,71.09049348]
[1742291527796,7.9823,125.28,125.25,79.07399348]
[1742291527991,13.23601745,125.29,125.25,79.07399348]
[1742291528392,7.9829,125.27,125.25,79.07399348]
[1742291529193,7.9822,125.28,125.25,79.07399348]
[1742291529687,7.9822,125.28,125.26,7.9832]
[1742291531791,13.23601745,125.29,125.25,7.9835]
[1742291532196,0.05674429,125.29,125.25,7.9835]
[1742291532996,0.05674429,125.29,125.26,7.9832]
[1742291533191,0.05674429,125.29,125.24,13.17927316]
[1742291533397,7.9828,125.27,125.24,41.83927316]
[1742291533600,0.05674429,125.29,125.24,41.83927316]
[1742291533897,7.9823,125.28,125.24,41.83927316]
[1742291534297,7.9823,125.28,125.25,7.9834]
[1742291534500,7.9823,125.28,125.24,41.83927316]
[1742291534696,7.9823,125.28,125.26,7.9828]
[1742291534998,8.03834429,125.29,125.26,7.9828]
[1742291535995,0.05674429,125.29,125.26,13.17927316]
[1742291536397,0.05674429,125.29,125.28,7.9819]
[1742291536694,0.05674429,125.29,125.26,41.83927316]
[1742291537100,0.05674429,125.29,125.27,7.9822]
[1742291538297,0.05674429,125.29,125.26,41.83927316]
[1742291538298,0.05674429,125.29,125.28,7.9819]
[1742291542797,0.05674429,125.29,125.28,49.82117316]
[1742291547301,0.05674429,125.29,125.28,36.6419]
[1742291549207,0.05674429,125.29,125.27,21.16157316]
[1742291549410,0.05674429,125.29,125.26,263.42]
[1742291549710,7.9825,125.27,125.26,263.42]
[1742291550808,0.05674429,125.29,125.26,263.42]
[1742291551910,7.9822,125.28,125.26,271.4029]
[1742291552912,0.05674429,125.29,125.26,263.42]
[1742291553409,13.17927316,125.37,125.27,13.17927316]
[1742291553609,13.17927316,125.37,125.31,13.17927316]
[1742291553808,7.9785,125.34,125.31,49.77867316]
[1742291554008,134.89617621,125.37,125.31,41.79927316]
[1742291554414,7.9772,125.36,125.32,7.979]
[1742291554716,0.0547215,125.35,125.33,0.06142207]
[1742291555720,0.0547215,125.35,125.33,8.03992207]
[1742291556810,0.0547215,125.35,125.34,7.9781]
[1742291558420,0.0547215,125.35,125.33,8.03982207]
[1742291559518,0.0547215,125.35,125.34,7.9781]
[1742291564712,0.0547215,125.35,125.33,36.65982207]
[1742291568026,8.0323215,125.35,125.33,36.65982207]
[1742291568531,8.0323215,125.35,125.33,8.03982207]
[1742291571525,7.9781,125.34,125.33,0.06142207]
[1742291572332,7.9797,125.32,125.28,13.17927316]
[1742291572529,7.9797,125.32,125.29,36.601]
[1742291572838,7.9797,125.32,125.29,7.981]
[1742291573132,7.9797,125.32,125.3,7.9805]
[1742291573526,8.03467731,125.32,125.3,7.9805]
[1742291574234,8.03467731,125.32,125.29,7.981]
[1742291574924,7.9801,125.31,125.29,7.981]
[1742291575128,7.9801,125.31,125.29,36.561]
[1742291575329,7.9801,125.31,125.28,21.16087316]
[1742291575531,7.9813,125.29,125.28,41.75927316]
[1742291575831,0.05497731,125.32,125.28,41.75927316]
[1742291576238,7.9811,125.3,125.28,41.75927316]
[1742291578346,7.9813,125.29,125.28,13.17927316]
[1742291578535,7.9813,125.29,125.27,36.5623]
[1742291578939,8.04039515,125.29,125.27,36.5623]
[1742291581045,8.04039515,125.29,125.27,28.58]
[1742291581548,7.9819,125.28,125.27,28.58]
[1742291582651,8.04069515,125.29,125.27,36.5625]
[1742291585749,8.04069515,125.29,125.27,28.58]
[1742291586048,7.9819,125.28,125.27,28.58]
[1742291586257,13.23836831,125.29,125.23,6.1609]
[1742291586552,7.9823,125.28,125.24,41.69927316]
[1742291586752,0.05909515,125.29,125.26,13.17927316]
[1742291587353,0.05909515,125.29,125.27,7.9825]
[1742291587547,0.05909515,125.29,125.26,13.17927316]
[1742291587856,0.05909515,125.29,125.27,7.9825]
[1742291588353,7.982,125.28,125.25,41.77927316]
[1742291588548,0.05909515,125.29,125.25,41.79927316]
[1742291588756,0.05909515,125.29,125.25,49.78287316]
[1742291588956,7.9828,125.27,125.25,49.78287316]
[1742291589455,7.9828,125.27,125.25,41.79927316]
[1742291590149,7.9832,125.26,125.24,13.17927316]
[1742291590355,7.9832,125.26,125.24,41.79927316]
[1742291590557,8.03398364,125.26,125.24,41.79927316]
[1742291590965,8.03398364,125.26,125.24,49.78337316]
[1742291591557,8.03398364,125.26,125.24,41.79927316]
[1742291592160,7.9838,125.25,125.24,41.79927316]
[1742291592361,7.9838,125.25,125.23,7.9848]
[1742291592558,0.05078364,125.26,125.23,36.5848]
[1742291592858,8.03428364,125.26,125.23,36.5848]
[1742291594861,0.05078364,125.26,125.24,7.9843]
[1742291595051,0.05078364,125.26,125.24,13.17927316]
[1742291595461,0.05078364,125.26,125.25,7.9838]
[1742291595659,0.05078364,125.26,125.25,36.5638]
[1742291602661,0.05078364,125.26,125.25,28.58]
[1742291603157,0.05078364,125.26,125.25,36.5638]
[1742291604258,0.05078364,125.26,125.25,7.9838]
[1742291605167,49.9300568,125.26,125.18,44.36202698]
[1742291605467,13.17927316,125.21,125.17,44.36202698]
[1742291605667,28.76,125.2,125.17,44.36202698]
[1742291605966,36.79949767,125.2,125.17,44.36202698]
[1742291607266,7.9883,125.18,125.17,44.36202698]
[1742291607463,36.7283,125.18,125.17,44.36202698]
[1742291608868,36.7283,125.18,125.14,13.17927316]
[1742291609366,0.05804238,125.17,125.14,13.17927316]
[1742291609963,8.04704238,125.17,125.14,13.17927316]
[1742291611166,0.05804238,125.17,125.14,13.17927316]
[1742291612365,0.05804238,125.17,125.14,21.17007316]
[1742291612563,0.05804238,125.17,125.14,13.17927316]
[1742291612767,0.05804238,125.17,125.14,21.16977316]
[1742291613378,0.05804238,125.17,125.14,41.89927316]
[1742291613671,0.05804238,125.17,125.14,13.17927316]
[1742291614367,0.05804238,125.17,125.14,41.87927316]
[1742291614974,0.05804238,125.17,125.14,49.86967316]
[1742291616375,0.05804238,125.17,125.15,7.9902]
[1742291618876,0.05804238,125.17,125.16,7.9896]
[1742291619573,0.05804238,125.17,125.15,7.99]
[1742291619765,0.05804238,125.17,125.14,41.87927316]
[1742291620174,7.9899,125.16,125.13,4.3002]
[1742291620477,7.9899,125.16,125.12,41.83927316]
[1742291620776,7.9899,125.16,125.12,49.83077316]
[1742291620978,36.70724238,125.17,125.12,41.83927316]
[1742291621467,28.71804238,125.17,125.12,41.83927316]
[1742291621978,28.71804238,125.17,125.14,7.9905]
[1742291622173,36.70744238,125.17,125.14,7.9905]
[1742291623875,28.71804238,125.17,125.15,7.9899]
[1742291625478,36.70704238,125.17,125.14,7.9905]
[1742291626178,7.9896,125.16,125.14,7.9905]
[1742291626382,7.9896,125.16,125.13,7.9911]
[1742291626774,13.17927316,125.14,125.11,342.52583716]
[1742291626982,28.62,125.15,125.11,334.53343716]
[1742291627172,13.17927316,125.16,125.12,13.17927316]
[1742291627173,0.0590579,125.14,125.12,13.17927316]
[1742291627779,0.0590579,125.14,125.13,7.9915]
[1742291628181,0.0590579,125.14,125.11,363.19343716]
[1742291628383,0.0590579,125.14,125.13,7.9915]
[1742291629277,0.0590579,125.14,125.12,7.9918]
[1742291629484,0.0590579,125.14,125.11,376.37271032]
[1742291629982,0.0590579,125.14,125.12,7.9918]
[1742291630983,0.0590579,125.14,125.13,7.9915]
[1742291633477,0.0590579,125.14,125.13,21.17077316]
[1742291633982,0.0590579,125.14,125.13,49.79077316]
[1742291636079,13.17927316,125.18,125.13,49.79077316]
[1742291636080,363.0,125.28,125.17,7.9887]
[1742291636385,41.77927316,125.21,125.15,41.77927316]
[1742291636683,41.77927316,125.21,125.17,7.9886]
[1742291636886,7.9873,125.2,125.17,7.9886]
[1742291637074,13.17927316,125.23,125.17,13.17927316]
[1742291637275,0.05095985,125.2,125.18,7.9877]
[1742291637984,8.03825985,125.2,125.17,49.84046482]
[1742291638187,0.05095985,125.2,125.17,41.85176482]
[1742291638382,41.83023301,125.2,125.17,0.05249166]
[1742291638587,7.9876,125.19,125.17,0.05249166]
[1742291638786,41.83023301,125.2,125.17,0.05249166]
[1742291639487,7.988,125.19,125.17,0.05249166]
[1742291641185,7.9883,125.18,125.17,0.05249166]
[1742291642283,21.16757316,125.18,125.17,0.05249166]
[1742291642684,49.72757316,125.18,125.17,0.05249166]
[1742291643289,41.73927316,125.18,125.17,0.05249166]
[1742291643589,7.9877,125.19,125.17,0.05249166]
[1742291646591,36.57825985,125.2,125.17,8.04119166]
[1742291646889,28.59095985,125.2,125.17,0.05249166]
[1742291647491,0.05095985,125.2,125.18,7.988]
[1742291647796,0.05095985,125.2,125.18,13.17927316]
[1742291647998,0.05095985,125.2,125.19,7.9876]
[1742291649794,0.05095985,125.2,125.18,49.70727316]
[1742291649994,0.05095985,125.2,125.17,0.05249166]
[1742291650592,7.9882,125.19,125.17,0.05249166]
[1742291650797,0.05095985,125.2,125.17,0.05249166]
[1742291651194,7.9883,125.19,125.17,0.05249166]
[1742291651901,7.9883,125.18,125.17,0.05249166]
[1742291653591,49.66717316,125.19,125.17,0.05249166]
[1742291656102,7.9883,125.18,125.17,0.05249166]
[1742291660203,21.16757316,125.18,125.17,0.05249166]
[1742291662108,21.16757316,125.18,125.13,271.6512]
[1742291662109,7.9908,125.14,125.13,263.66]
[1742291662296,7.9908,125.14,125.12,7.9919]
[1742291663101,7.9908,125.14,125.11,49.63167316]
[1742291663296,7.9916,125.13,125.11,49.63167316]
[1742291664401,0.05260526,125.14,125.11,49.63167316]
[1742291664603,0.05260526,125.14,125.11,21.17167316]
[1742291664803,8.04380526,125.14,125.11,21.17167316]
[1742291665298,8.04380526,125.14,125.12,7.992]
[1742291665599,7.9916,125.13,125.1,21.17227316]
[1742291665802,0.05260526,125.14,125.1,13.17927316]
[1742291666197,8.04390526,125.14,125.11,7.9927]
[1742291666502,0.05260526,125.14,125.11,7.9927]
[1742291666903,7.9916,125.13,125.1,21.17227316]
[1742291667712,0.05260526,125.14,125.1,21.17227316]
[1742291668204,7.9919,125.13,125.1,13.17927316]
[1742291668399,0.05260526,125.14,125.1,13.17927316]
[1742291668799,7.9919,125.13,125.1,21.17257316]
[1742291669804,8.04380526,125.14,125.11,7.9927]
[1742291670006,0.05260526,125.14,125.11,7.9927]
[1742291670903,8.04370526,125.14,125.11,7.9927]
[1742291671102,0.05260526,125.14,125.1,41.65927316]
[1742291671306,41.65927316,125.13,125.09,263.64]
[1742291671605,7.9934,125.1,125.09,263.64]
[1742291673006,0.05916868,125.11,125.09,263.64]
[1742291673509,8.05196868,125.11,125.09,263.64]
[1742291674515,13.17927316,125.1,125.05,263.72]
[1742291674711,13.17927316,125.1,125.06,7.9959]
[1742291674905,13.17927316,125.1,125.05,276.89927316]
[1742291675614,21.17297316,125.1,125.07,7.995]
[1742291675914,7.9937,125.1,125.07,7.995]
[1742291676115,7.9937,125.1,125.06,7.9956]
[1742291676409,13.17927316,125.1,125.05,276.89927316]
[1742291676607,13.17927316,125.1,125.06,7.9959]
[1742291676809,7.9943,125.09,125.05,276.89927316]
[1742291677008,7.9943,125.09,125.06,7.9955]
[1742291677212,0.05396131,125.09,125.06,41.69927316]
[1742291678518,0.05396131,125.09,125.08,7.9947]
[1742291678910,0.05396131,125.09,125.07,13.17927316]
[1742291679517,0.05396131,125.09,125.07,21.17407316]
[1742291680614,0.05396131,125.09,125.08,7.9947]
[1742291680813,0.05396131,125.09,125.07,13.17927316]
[1742291681417,0.05396131,125.09,125.07,21.17427316]
[1742291682008,0.05396131,125.09,125.07,7.995]
[1742291682214,0.05396131,125.09,125.06,49.69487316]
[1742291682413,0.05396131,125.09,125.06,41.69927316]
[1742291682719,0.05396131,125.09,125.07,7.9953]
[1742291683426,8.04806131,125.09,125.06,36.5157]
[1742291683620,8.04806131,125.09,125.05,276.89927316]
[1742291683621,0.05396131,125.09,125.05,263.72]
[1742291683818,7.995,125.08,125.05,300.2163]
[1742291684021,7.995,125.08,125.05,292.22]
[1742291685009,7.995,125.08,125.06,7.9959]
[1742291686323,7.995,125.08,125.05,313.39557316]
[1742291686714,7.9954,125.07,125.05,313.39557316]
[1742291688320,7.996,125.06,125.05,263.72]
[1742291688627,7.996,125.06,125.0,6.3133]
[1742291688628,28.48,125.07,125.0,296.5101]
[1742291688819,28.48,125.07,125.01,21.17817316]
[1742291688820,7.9975,125.04,125.01,21.17817316]
[1742291689020,7.9975,125.04,125.01,49.65817316]
[1742291689220,0.05870203,125.05,125.0,265.8947]
[1742291689521,0.05870203,125.05,125.01,13.17927316]
[1742291690327,0.05870203,125.05,125.03,13.17927316]
[1742291690915,0.05870203,125.05,125.03,21.17667316]
[1742291691919,0.05870203,125.05,125.0,265.8947]
[1742291692119,13.23797519,125.05,125.0,307.55397316]
[1742291692623,7.9973,125.04,125.0,315.55347316]